fUST/lending_fUST_20251008
["ID","MTS","AMOUNT","RATE_DAILY","PERIOD"]
[389799317,1759853442373,-500.0,0.00022213,2]
[389799319,1759853442382,-500.0,0.00022213,2]
[389799322,1759853442391,-500.0,0.00022213,2]
[389799324,1759853442400,-500.0,0.00022213,2]
[389799326,1759853442409,-500.0,0.00022213,2]
[389799328,1759853442418,-500.0,0.00022213,2]
[389799330,1759853442429,-500.0,0.00022213,2]
[389799332,1759853442442,-500.0,0.00022213,2]
[389799334,1759853442452,-500.0,0.00022213,2]
[389799336,1759853442461,-530.76335332,0.00022213,2]
[389799338,1759853442473,-500.0,0.00022213,2]
[389799340,1759853442484,-161.55304732,0.00022213,2]
[389799342,1759853442493,-500.0,0.00022213,2]
[389799344,1759853442502,-500.0,0.00022213,2]
[389799347,1759853442515,-163.92239522,0.00022213,2]
[389799349,1759853442524,-500.0,0.00022213,2]
[389799351,1759853442534,-510.46914813,0.00022213,2]
[389799353,1759853442543,-500.0,0.00022213,2]
[389799355,1759853442553,-500.0,0.00022213,2]
[389799357,1759853442562,-500.0,0.00022213,2]
[389799359,1759853442571,-500.0,0.00022213,2]
[389799361,1759853442581,-500.0,0.00022213,2]
[389799363,1759853442590,-500.0,0.00022213,2]
[389799365,1759853442599,-500.0,0.00022213,2]
[389799367,1759853442609,-500.0,0.00022213,2]
[389799369,1759853442618,-500.0,0.00022213,2]
[389799371,1759853442627,-500.0,0.00022213,2]
[389799373,1759853442637,-500.0,0.00022213,2]
[389799375,1759853442646,-500.0,0.00022213,2]
[389799378,1759853442656,-500.0,0.00022213,2]
[389799381,1759853442666,-500.0,0.00022213,2]
[389799383,1759853442676,-517.91923232,0.00022213,2]
[389799385,1759853442687,-527.12120474,0.00022213,2]
[389799387,1759853442697,-500.0,0.00022213,2]
[389799389,1759853442707,-500.0,0.00022213,2]
[389799391,1759853442717,-500.0,0.00022213,2]
[389799393,1759853442727,-500.0,0.00022213,2]
[389799395,1759853442738,-500.0,0.00022213,2]
[389799397,1759853442748,-203.67230258,0.00022213,2]
[389799399,1759853442758,-500.0,0.00022213,2]
[389799401,1759853442767,-500.0,0.00022213,2]
[389799403,1759853442777,-500.0,0.00022213,2]
[389799404,1759853442786,-627.73257475,0.00022213,2]
[389799406,1759853442796,-500.0,0.00022213,2]
[389799408,1759853442805,-293.85068442,0.00022339,2]
[389799410,1759853442815,-4500.0,0.00022356,2]
[389799413,1759853442825,-4500.0,0.00022356,2]
[389799414,1759853442835,-4500.0,0.00022356,2]
[389799417,1759853442844,-4500.0,0.00022356,2]
[389799418,1759853442853,-503.7657808,0.0002236,2]
[389799420,1759853442862,-1000.0,0.0002236,2]
[389799422,1759853442873,-823.0,0.00022378,2]
[389799424,1759853442882,-1243.03927349,0.00022398,2]
[389799427,1759853442891,-1000.0,0.00022496,2]
[389799428,1759853442901,-1000.0,0.00022496,2]
[389799430,1759853442910,-200.0,0.0002251,2]
[389799433,1759853442919,-1000.0,0.00022552,4]
[389799434,1759853442929,-500.0,0.00022576,2]
[389799437,1759853442939,-500.0,0.00022576,2]
[389799449,1759853442949,-500.0,0.00022578,2]
[389799450,1759853443135,-1500.0,0.00022589,2]
[389799451,1759853443145,-1500.0,0.00022589,2]
[389799452,1759853443154,-151.0,0.00022589,7]
[389799453,1759853443164,-151.0,0.00022589,7]
[389799454,1759853443174,-151.0,0.00022589,7]
[389799455,1759853443183,-296.3179,0.00022589,7]
[389799456,1759853443193,-151.0,0.00022589,7]
[389799457,1759853443202,-452.269899,0.00022589,7]
[389799458,1759853443212,-452.269899,0.00022589,7]
[389799459,1759853443221,-452.269899,0.00022589,7]
[389799460,1759853443231,-452.269899,0.00022589,7]
[389799461,1759853443242,-151.0,0.00022589,7]
[389799462,1759853443252,-151.0,0.00022589,7]
[389799463,1759853443261,-151.0,0.00022589,7]
[389799464,1759853443271,-151.0,0.00022589,7]
[389799465,1759853443280,-151.0,0.00022589,7]
[389799466,1759853443289,-151.0,0.00022589,7]
[389799467,1759853443299,-151.0,0.00022589,7]
[389799468,1759853443308,-151.0,0.00022589,7]
[389799469,1759853443319,-12500.0,0.000226,7]
[389799470,1759853443329,-402.02512307,0.000226,7]
[389799471,1759853443339,-533.72506543,0.000226,7]
[389799473,1759853443349,-151.0,0.000226,7]
[389799475,1759853443358,-151.0,0.000226,7]
[389799477,1759853443367,-151.0,0.000226,7]
[389799479,1759853443376,-201.921772,0.000226,7]
[389799481,1759853443386,-151.0,0.000226,7]
[389799483,1759853443396,-168.119458,0.000226,7]
[389799485,1759853443405,-151.0,0.000226,7]
[389799487,1759853443415,-151.0,0.000226,7]
[389799489,1759853443428,-275.360824,0.000226,7]
[389799491,1759853443448,-151.0,0.000226,7]
[389799493,1759853443457,-338.603931,0.000226,7]
[389799495,1759853443467,-338.603931,0.000226,7]
[389799498,1759853443476,-338.603931,0.000226,7]
[389799499,1759853443487,-338.603931,0.000226,7]
[389799501,1759853443497,-151.0,0.000226,7]
[389799504,1759853443507,-151.0,0.000226,7]
[389799506,1759853443517,-298.911972,0.000226,7]
[389799508,1759853443527,-298.911972,0.000226,7]
[389799510,1759853443537,-298.911972,0.000226,7]
[389799512,1759853443547,-298.911972,0.000226,7]
[389799514,1759853443556,-435.55678837,0.00022604,2]
[389799515,1759853443565,-200.0,0.0002261,2]
[389799517,1759853443575,-1000.0,0.00022665,2]
[389799519,1759853443585,-1000.0,0.00022665,2]
[389799522,1759853443594,-1000.0,0.00022665,2]
[389799523,1759853443604,-1000.0,0.00022665,2]
[389799525,1759853443613,-1000.0,0.00022665,2]
[389799527,1759853443622,-1000.0,0.00022665,2]
[389799529,1759853443631,-1000.0,0.00022665,2]
[389799531,1759853443641,-1000.0,0.00022665,2]
[389799533,1759853443650,-1000.0,0.00022665,2]
[389799535,1759853443660,-1000.0,0.00022665,2]
[389799537,1759853443669,-1000.0,0.00022665,2]
[389799539,1759853443679,-1000.0,0.00022665,2]
[389799541,1759853443688,-151.338804,0.00022665,7]
[389799544,1759853443701,-162.116681,0.00022665,7]
[389799546,1759853443711,-285.141977,0.00022665,7]
[389799548,1759853443721,-162.116681,0.00022665,7]
[389799550,1759853443730,-285.141977,0.00022665,7]
[389799552,1759853443741,-162.116681,0.00022665,7]
[389799553,1759853443750,-285.141977,0.00022665,7]
[389799556,1759853443760,-157.259188,0.00022665,7]
[389799557,1759853443770,-162.116681,0.00022665,7]
[389799559,1759853443780,-151.0,0.00022665,7]
[389799561,1759853443789,-285.141977,0.00022665,7]
[389799563,1759853443799,-157.259188,0.00022665,7]
[389799565,1759853443808,-157.259188,0.00022665,7]
[389799567,1759853443818,-157.259188,0.00022665,7]
[389799569,1759853443827,-151.0,0.00022665,7]
[389799571,1759853443837,-151.0,0.00022665,7]
[389799573,1759853443847,-151.0,0.00022665,7]
[389799574,1759853443856,-151.0,0.00022665,7]
[389799577,1759853443866,-151.0,0.00022665,7]
[389799578,1759853443876,-151.0,0.00022665,7]
[389799580,1759853443885,-151.0,0.00022665,7]
[389799582,1759853443894,-151.0,0.00022665,7]
[389799584,1759853443904,-151.0,0.00022665,7]
[389799586,1759853443914,-184.089283,0.00022665,7]
[389799588,1759853443923,-1913.681309,0.00022665,7]
[389799590,1759853443932,-1913.681309,0.00022665,7]
[389799592,1759853443942,-151.0,0.00022665,7]
[389799594,1759853443952,-1913.681309,0.00022665,7]
[389799596,1759853443961,-151.0,0.00022665,7]
[389799598,1759853443970,-1913.681309,0.00022665,7]
[389799600,1759853443980,-151.0,0.00022665,7]
[389799602,1759853443990,-253.737748,0.00022665,7]
[389799604,1759853443999,-151.0,0.00022665,7]
[389799606,1759853444009,-431.694621,0.00022665,7]
[389799608,1759853444018,-151.0,0.00022665,7]
[389799610,1759853444028,-431.694621,0.00022665,7]
[389799612,1759853444037,-686.875483,0.00022665,7]
[389799613,1759853444047,-151.0,0.00022665,7]
[389799615,1759853444057,-151.0,0.00022665,7]
[389799617,1759853444066,-431.694621,0.00022665,7]
[389799619,1759853444075,-686.875483,0.00022665,7]
[389799621,1759853444085,-431.694621,0.00022665,7]
[389799623,1759853444095,-1069.247547,0.00022665,7]
[389799625,1759853444105,-151.0,0.00022665,7]
[389799627,1759853444115,-686.875483,0.00022665,7]
[389799629,1759853444125,-151.0,0.00022665,7]
[389799631,1759853444136,-151.0,0.00022665,7]
[389799633,1759853444146,-686.875483,0.00022665,7]
[389799635,1759853444156,-151.0,0.00022665,7]
[389799637,1759853444166,-151.0,0.00022665,7]
[389799639,1759853444176,-305.776615,0.00022665,7]
[389799641,1759853444186,-161.378252,0.00022665,7]
[389799643,1759853444196,-1069.247547,0.00022665,7]
[389799645,1759853444206,-151.0,0.00022665,7]
[389799647,1759853444216,-1069.247547,0.00022665,7]
[389799649,1759853444226,-151.0,0.00022665,7]
[389799651,1759853444237,-259.541923,0.00022665,7]
[389799653,1759853444246,-151.912284,0.00022665,7]
[389799655,1759853444256,-1069.247547,0.00022665,7]
[389799656,1759853444265,-305.776615,0.00022665,7]
[389799658,1759853444275,-305.776615,0.00022665,7]
[389799660,1759853444284,-305.776615,0.00022665,7]
[389799662,1759853444294,-151.0,0.00022665,7]
[389799664,1759853444303,-151.0,0.00022665,7]
[389799666,1759853444312,-151.0,0.00022665,7]
[389799668,1759853444321,-151.0,0.00022665,7]
[389799670,1759853444331,-151.0,0.00022665,7]
[389799672,1759853444340,-151.0,0.00022665,7]
[389799674,1759853444349,-540.743678,0.00022665,7]
[389799676,1759853444359,-151.0,0.00022665,7]
[389799678,1759853444368,-151.0,0.00022665,7]
[389799680,1759853444377,-171.33349,0.00022665,7]
[389799682,1759853444386,-540.743678,0.00022665,7]
[389799683,1759853444395,-540.743678,0.00022665,7]
[389799685,1759853444405,-151.0,0.00022665,7]
[389799687,1759853444414,-151.0,0.00022665,7]
[389799689,1759853444423,-151.0,0.00022665,7]
[389799691,1759853444437,-10000.0,0.00022665,7]
[389799693,1759853444447,-151.0,0.00022665,7]
[389799695,1759853444457,-540.743678,0.00022665,7]
[389799697,1759853444467,-10000.0,0.00022665,7]
[389799699,1759853444476,-252.884702,0.00022665,7]
[389799701,1759853444487,-10000.0,0.00022665,7]
[389799703,1759853444496,-252.884702,0.00022665,7]
[389799705,1759853444506,-10000.0,0.00022665,7]
[389799707,1759853444518,-252.884702,0.00022665,7]
[389799709,1759853444527,-10000.0,0.00022665,7]
[389799711,1759853444537,-252.884702,0.00022665,7]
[389799713,1759853444547,-266.71418,0.00022665,7]
[389799715,1759853444556,-266.71418,0.00022665,7]
[389799717,1759853444566,-223.041713,0.00022665,7]
[389799719,1759853444575,-266.71418,0.00022665,7]
[389799721,1759853444584,-223.041713,0.00022665,7]
[389799723,1759853444594,-266.71418,0.00022665,7]
[389799725,1759853444603,-223.041713,0.00022665,7]
[389799727,1759853444612,-151.0,0.00022665,7]
[389799728,1759853444622,-223.041713,0.00022665,7]
[389799730,1759853444631,-151.0,0.00022665,7]
[389799732,1759853444641,-151.0,0.00022665,7]
[389799734,1759853444650,-151.0,0.00022665,7]
[389799736,1759853444660,-151.0,0.00022665,7]
[389799738,1759853444670,-154.397771,0.00022665,7]
[389799740,1759853444680,-151.0,0.00022665,7]
[389799742,1759853444690,-152.233092,0.00022665,7]
[389799744,1759853444700,-151.0,0.00022665,7]
[389799746,1759853444711,-151.320484,0.00022665,7]
[389799748,1759853444720,-151.0,0.00022665,7]
[389799750,1759853444729,-368.524893,0.00022665,7]
[389799751,1759853444741,-151.0,0.00022665,7]
[389799753,1759853444751,-368.524893,0.00022665,7]
[389799755,1759853444760,-209.616144,0.00022665,7]
[389799757,1759853444771,-368.524893,0.00022665,7]
[389799759,1759853444781,-151.0,0.00022665,7]
[389799761,1759853444791,-1347.875389,0.00022665,7]
[389799763,1759853444802,-368.524893,0.00022665,7]
[389799765,1759853444811,-151.0,0.00022665,7]
[389799767,1759853444821,-1347.875389,0.00022665,7]
[389799769,1759853444831,-394.730659,0.00022665,7]
[389799771,1759853444840,-1347.875389,0.00022665,7]
[389799772,1759853444850,-394.730659,0.00022665,7]
[389799774,1759853444860,-1347.875389,0.00022665,7]
[389799776,1759853444869,-394.730659,0.00022665,7]
[389799778,1759853444878,-394.730659,0.00022665,7]
[389799780,1759853444888,-518.339939,0.00022665,7]
[389799782,1759853444898,-518.339939,0.00022665,7]
[389799784,1759853444909,-518.339939,0.00022665,7]
[389799786,1759853444919,-596.654506,0.00022665,7]
[389799788,1759853444929,-596.654506,0.00022665,7]
[389799790,1759853444939,-518.339939,0.00022665,7]
[389799792,1759853444948,-596.654506,0.00022665,7]
[389799794,1759853444958,-596.654506,0.00022665,7]
[389799796,1759853444968,-151.0,0.00022665,7]
[389799798,1759853444978,-151.0,0.00022665,7]
[389799800,1759853444989,-151.0,0.00022665,7]
[389799802,1759853445000,-151.0,0.00022665,7]
[389799804,1759853445009,-182.188164,0.00022665,7]
[389799806,1759853445019,-2000.0,0.000227,2]
[389799808,1759853445029,-151.0,0.000227,7]
[389799810,1759853445039,-2000.0,0.000227,2]
[389799812,1759853445049,-200.0,0.0002271,2]
[389799814,1759853445058,-660.0,0.0002275,2]
[389799816,1759853445067,-500.0,0.00022752,2]
[389799817,1759853445077,-1000.0,0.00022761,2]
[389799820,1759853445087,-1000.0,0.00022761,2]
[389799821,1759853445096,-1000.0,0.00022761,2]
[389799823,1759853445105,-1000.0,0.00022761,2]
[389799825,1759853445115,-1000.0,0.00022761,2]
[389799827,1759853445125,-537.51470739,0.00022761,2]
[389799829,1759853445135,-511.89809001,0.00022761,2]
[389799831,1759853445144,-742.43363358,0.00022761,2]
[389799833,1759853445154,-1000.0,0.00022761,2]
[389799835,1759853445164,-1000.0,0.00022761,2]
[389799837,1759853445174,-1000.0,0.00022761,2]
[389799839,1759853445184,-417.96535294,0.00022761,2]
[389799841,1759853445194,-1000.0,0.00022761,2]
[389799843,1759853445203,-1000.0,0.00022761,2]
[389799845,1759853445212,-1000.0,0.00022761,2]
[389799846,1759853445222,-1000.0,0.00022761,2]
[389799848,1759853445232,-1000.0,0.00022761,2]
[389799850,1759853445243,-1000.0,0.00022761,2]
[389799852,1759853445253,-297.79577032,0.00022761,2]
[389799854,1759853445264,-1000.0,0.00022761,2]
[389799856,1759853445274,-1076.27279867,0.00022761,2]
[389799858,1759853445283,-213.64385673,0.00022761,2]
[389799860,1759853445293,-1000.0,0.00022761,2]
[389799862,1759853445302,-1000.0,0.00022761,2]
[389799864,1759853445312,-1000.0,0.00022761,2]
[389799866,1759853445321,-1000.0,0.00022761,2]
[389799868,1759853445330,-1000.0,0.00022761,2]
[389799870,1759853445339,-1000.0,0.00022761,2]
[389799872,1759853445349,-1000.0,0.00022761,2]
[389799874,1759853445359,-1000.0,0.00022761,2]
[389799876,1759853445369,-329.31214133,0.00022761,2]
[389799878,1759853445379,-1000.0,0.00022761,2]
[389799880,1759853445388,-1000.0,0.00022761,2]
[389799882,1759853445398,-1000.0,0.00022761,2]
[389799884,1759853445407,-1000.0,0.00022761,2]
[389799886,1759853445417,-200.0,0.0002281,2]
[389799888,1759853445427,-800.0,0.00022877,2]
[389799890,1759853445439,-1305.19123716,0.00022898,2]
[389799892,1759853445450,-209.51310264,0.00022904,2]
[389799894,1759853445459,-5000.0,0.00022904,2]
[389799896,1759853445469,-5000.0,0.00022904,2]
[389799898,1759853445479,-569.27703144,0.00022904,2]
[389799905,1759853445540,-1500.0,0.00022908,2]
[389799906,1759853445550,-200.0,0.0002291,2]
[389799909,1759853445560,-240.5916,0.0002292,2]
[389799911,1759853445570,-240.5916,0.0002292,2]
[389799914,1759853445580,-151.0,0.0002292,7]
[389799917,1759853445589,-240.5916,0.0002292,2]
[389799921,1759853445599,-151.0,0.0002292,7]
[389799923,1759853445608,-240.5916,0.0002292,2]
[389799926,1759853445617,-151.0,0.0002292,7]
[389799929,1759853445626,-151.0,0.0002292,7]
[389799932,1759853445636,-198.0,0.00022932,8]
[389799935,1759853445646,-279.06357233,0.00022971,2]
[389799938,1759853445655,-1041.66666667,0.00023,2]
[389799941,1759853445664,-533.72506543,0.00023,7]
[389799944,1759853445678,-402.02512307,0.00023,7]
[389799947,1759853445688,-160.0,0.00023,2]
[389799950,1759853445697,-125241.05088674,0.00023,2]
[389799953,1759853445707,-19455.5130512,0.00023,2]
[389799956,1759853445716,-416.236073,0.00023,7]
[389799958,1759853445725,-416.236073,0.00023,7]
[389799960,1759853445734,-178.559322,0.00023,7]
[389799961,1759853445743,-151.0,0.00023,7]
[389799963,1759853445753,-416.236073,0.00023,7]
[389799965,1759853445762,-178.559322,0.00023,7]
[389799967,1759853445772,-151.0,0.00023,7]
[389799970,1759853445783,-416.236073,0.00023,7]
[389799971,1759853445792,-178.559322,0.00023,7]
[389799973,1759853445802,-151.0,0.00023,7]
[389799975,1759853445811,-8025.91,0.00023013,2]
[389799977,1759853445820,-261.5905832,0.00023014,2]
[389799979,1759853445830,-160.0,0.00023029,4]
[389799981,1759853445839,-1630.27174231,0.00023044,2]
[389799982,1759853445847,-1609.75151869,0.00023044,2]
[389799983,1759853445858,-500.0,0.00023046,2]
[389799984,1759853445877,-800.0,0.00023079,2]
[389799985,1759853445889,-200.0,0.000231,2]
[389799986,1759853445899,-2000.0,0.00023137,2]
[389799987,1759853445907,-2000.0,0.00023137,2]
[389799988,1759853445916,-1000.0,0.00023143,5]
[389799989,1759853445925,-1500.0,0.00023213,2]
[389799990,1759853445934,-831.09634457,0.00023213,2]
[389799991,1759853445943,-1500.0,0.00023213,2]
[389799992,1759853445952,-1500.0,0.00023213,2]
[389799993,1759853445961,-1500.0,0.00023213,2]
[389799994,1759853445970,-1536.50006043,0.00023213,2]
[389799996,1759853445979,-1500.0,0.00023213,2]
[389799998,1759853445989,-1500.0,0.00023213,2]
[389800000,1759853445999,-1500.0,0.00023213,2]
[389800002,1759853446008,-1500.0,0.00023213,2]
[389800004,1759853446017,-1500.0,0.00023213,2]
[389800006,1759853446026,-1500.0,0.00023213,2]
[389800008,1759853446035,-683.96585689,0.00023242,2]
[389800010,1759853446044,-500.0,0.00023287,2]
[389800012,1759853446053,-153.151123,0.00023295,2]
[389800014,1759853446063,-760.0,0.00023298,2]
[389800016,1759853446073,-6485.15,0.000233,2]
[389800018,1759853446082,-168.172121,0.00023307,7]
[389800020,1759853446091,-168.172121,0.00023307,7]
[389800022,1759853446103,-168.172121,0.00023307,7]
[389800024,1759853446112,-168.172121,0.00023307,7]
[389800026,1759853446121,-151.0,0.00023307,7]
[389800028,1759853446130,-151.0,0.00023307,7]
[389800030,1759853446139,-151.0,0.00023307,7]
[389800032,1759853446149,-151.0,0.00023307,7]
[389800034,1759853446159,-1500.0,0.00023309,2]
[389800036,1759853446168,-1500.0,0.00023309,2]
[389800038,1759853446178,-1500.0,0.00023309,2]
[389800040,1759853446188,-1500.0,0.00023309,2]
[389800042,1759853446197,-1500.0,0.00023309,2]
[389800044,1759853446206,-1500.0,0.00023309,2]
[389800046,1759853446215,-1500.0,0.00023309,2]
[389800048,1759853446224,-1500.65714995,0.00023309,2]
[389800050,1759853446233,-1100.78021598,0.00023309,2]
[389800052,1759853446243,-674.06112132,0.00023309,2]
[389800054,1759853446252,-1500.0,0.00023309,2]
[389800057,1759853446262,-1500.0,0.00023309,2]
[389800059,1759853446271,-1500.0,0.00023309,2]
[389800061,1759853446282,-1500.0,0.00023309,2]
[389800062,1759853446292,-1500.0,0.00023309,2]
[389800065,1759853446301,-1500.0,0.00023309,2]
[389800066,1759853446311,-503.8692163,0.00023309,2]
[389800069,1759853446321,-611.06656852,0.00023309,2]
[389800070,1759853446329,-1500.0,0.00023309,2]
[389800072,1759853446339,-1500.0,0.00023309,2]
[389800075,1759853446349,-1500.0,0.00023309,2]
[389800077,1759853446359,-1500.0,0.00023309,2]
[389800079,1759853446368,-1500.0,0.00023309,2]
[389800081,1759853446377,-1500.0,0.00023309,2]
[389800083,1759853446387,-1500.0,0.00023309,2]
[389800085,1759853446396,-1500.0,0.00023309,2]
[389800087,1759853446405,-1500.0,0.00023309,2]
[389800089,1759853446414,-1000.0,0.00023329,20]
[389800091,1759853446424,-800.0,0.00023332,2]
[389800093,1759853446438,-1367.34320084,0.00023398,2]
[389800095,1759853446447,-402.02512307,0.000234,7]
[389800097,1759853446456,-533.72506543,0.000234,7]
[389800099,1759853446465,-1411.95123886,0.00023416,2]
[389800101,1759853446475,-1500.0,0.00023452,2]
[389800103,1759853446485,-5500.0,0.00023452,2]
[389800105,1759853446494,-2000.0,0.00023456,2]
[389800107,1759853446503,-500.0,0.00023482,2]
[389800109,1759853446512,-151.0,0.000235,7]
[389800111,1759853446522,-582.740774,0.000235,7]
[389800113,1759853446531,-582.740774,0.000235,7]
[389800114,1759853446540,-582.740774,0.000235,7]
[389800116,1759853446550,-582.740774,0.000235,7]
[389800118,1759853446559,-151.0,0.000235,7]
[389800120,1759853446570,-151.0,0.000235,7]
[389800123,1759853446580,-151.0,0.000235,7]
[389800124,1759853446590,-151.0,0.000235,7]
[389800126,1759853446600,-151.0,0.000235,7]
[389800128,1759853446609,-151.0,0.000235,7]
[389800130,1759853446618,-151.0,0.000235,7]
[389800132,1759853446627,-163.791041,0.000235,7]
[389800134,1759853446636,-163.791041,0.000235,7]
[389800136,1759853446645,-163.791041,0.000235,7]
[389800138,1759853446654,-163.791041,0.000235,7]
[389800140,1759853446663,-192.047637,0.000235,7]
[389800142,1759853446672,-192.047637,0.000235,7]
[389800144,1759853446681,-192.047637,0.000235,7]
[389800146,1759853446691,-192.047637,0.000235,7]
[389800148,1759853446700,-1009.489455,0.000235,2]
[389800151,1759853446710,-200.0,0.0002351,2]
[389800152,1759853446719,-500.0,0.00023616,9]
[389800155,1759853446729,-800.0,0.00023624,2]
[389800156,1759853446739,-500.0,0.0002365,2]
[389800158,1759853446748,-800.0,0.00023658,2]
[389800160,1759853446757,-800.0,0.0002367,2]
[389800162,1759853446766,-2500.0,0.00023685,2]
[389800164,1759853446777,-2500.0,0.00023685,2]
[389800166,1759853446786,-1411.95123886,0.00023692,2]
[389800168,1759853446795,-2000.0,0.000237,2]
[389800170,1759853446804,-2000.0,0.000237,2]
[389800172,1759853446813,-500.0,0.00023715,2]
[389800174,1759853446822,-500.0,0.00023716,9]
[389800176,1759853446831,-800.0,0.00023734,2]
[389800178,1759853446840,-497.77918671,0.00023758,2]
[389800180,1759853446849,-1414.01429545,0.00023761,2]
[389800182,1759853446858,-1844.95374943,0.00023761,2]
[389800184,1759853446868,-2000.0,0.00023761,2]
[389800186,1759853446878,-1068.64053443,0.00023761,2]
[389800188,1759853446888,-569.6323004,0.00023761,2]
[389800190,1759853446898,-1956.92988192,0.00023761,2]
[389800192,1759853446908,-2000.0,0.00023761,2]
[389800194,1759853446926,-2000.0,0.00023761,2]
[389800196,1759853446936,-2000.0,0.00023761,2]
[389800198,1759853446946,-2000.0,0.00023761,2]
[389800200,1759853446957,-540.743678,0.00023761,7]
[389800202,1759853446967,-151.0,0.00023761,7]
[389800204,1759853446977,-151.0,0.00023761,7]
[389800206,1759853446987,-540.743678,0.00023761,7]
[389800208,1759853446996,-540.743678,0.00023761,7]
[389800210,1759853447007,-151.0,0.00023761,7]
[389800212,1759853447016,-151.0,0.00023761,7]
[389800214,1759853447026,-151.0,0.00023761,7]
[389800216,1759853447035,-10000.0,0.00023761,7]
[389800218,1759853447046,-151.0,0.00023761,7]
[389800220,1759853447055,-540.743678,0.00023761,7]
[389800222,1759853447064,-10000.0,0.00023761,7]
[389800224,1759853447074,-252.884702,0.00023761,7]
[389800227,1759853447084,-10000.0,0.00023761,7]
[389800228,1759853447094,-252.884702,0.00023761,7]
[389800231,1759853447104,-10000.0,0.00023761,7]
[389800233,1759853447113,-252.884702,0.00023761,7]
[389800235,1759853447123,-10000.0,0.00023761,7]
[389800236,1759853447132,-252.884702,0.00023761,7]
[389800239,1759853447141,-266.71418,0.00023761,7]
[389800241,1759853447150,-266.71418,0.00023761,7]
[389800243,1759853447159,-223.041713,0.00023761,7]
[389800245,1759853447169,-266.71418,0.00023761,7]
[389800247,1759853447178,-223.041713,0.00023761,7]
[389800249,1759853447188,-266.71418,0.00023761,7]
[389800251,1759853447197,-223.041713,0.00023761,7]
[389800253,1759853447206,-151.0,0.00023761,7]
[389800255,1759853447216,-223.041713,0.00023761,7]
[389800257,1759853447225,-259.104704,0.00023761,7]
[389800259,1759853447234,-151.0,0.00023761,7]
[389800261,1759853447243,-151.0,0.00023761,7]
[389800263,1759853447252,-800.0,0.00023785,2]
[389800265,1759853447262,-153.151123,0.00023796,7]
[389800266,1759853447271,-153.151123,0.0002381,3]
[389800268,1759853447281,-800.0,0.00023834,2]
[389800271,1759853447290,-1411.95123886,0.00023839,2]
[389800273,1759853447300,-860.0,0.00023846,2]
[389800275,1759853447309,-2000.0,0.00023857,2]
[389800277,1759853447318,-2034.99647613,0.00023857,2]
[389800278,1759853447327,-2000.0,0.00023857,2]
[389800280,1759853447336,-2000.0,0.00023857,2]
[389800282,1759853447345,-2000.0,0.00023857,2]
[389800284,1759853447354,-1222.880858,0.00023857,2]
[389800287,1759853447365,-586.15133972,0.00023857,2]
[389800289,1759853447374,-2000.0,0.00023857,2]
[389800291,1759853447384,-2000.0,0.00023857,2]
[389800293,1759853447393,-2000.0,0.00023857,2]
[389800295,1759853447402,-1100.71929438,0.00023857,2]
[389800296,1759853447411,-2000.0,0.00023857,2]
[389800299,1759853447420,-2000.0,0.00023857,2]
[389800301,1759853447433,-2000.0,0.00023857,2]
[389800303,1759853447447,-864.44052053,0.00023857,2]
[389800305,1759853447457,-2000.0,0.00023857,2]